lending/lending_fUSD_20250406
["ID","MTS","AMOUNT","RATE_DAILY","PERIOD"]
[357276966,1743974855336,668.65185757,0.00039422,30]
[357276967,1743974856543,693.3919763,0.00039422,30]
[357276968,1743974857220,719.04747942,0.00039422,30]
[357276969,1743974857833,745.65223616,0.00039422,30]
[357276970,1743974858590,1262.81739071,0.00039422,120]
[357276971,1743974858837,773.2413689,0.00039422,30]
[357276972,1743974859483,801.85129955,0.00039422,30]
[357276973,1743974860101,831.51979763,0.00039422,30]
[357276974,1743974860781,862.28603014,0.00039422,30]
[357276975,1743974861426,894.19061326,0.00039422,30]
[357276976,1743974862273,927.27566595,0.00039422,30]
[357276977,1743974862713,1500.0,0.00039422,30]
[357276978,1743974863053,2030.96362374,0.00039422,120]
[357276979,1743974863812,170.08197095,0.00039422,120]
[357276980,1743974868519,1409.5604318,0.00039422,120]
[357276981,1743974871520,1083.69129632,0.00039422,120]
[357276982,1743974871825,400.39017362,0.00039422,120]
[357276983,1743974874572,176.72934667,0.00039422,30]
[357276984,1743974876013,582.59960943,0.00039422,30]
[357276985,1743974877155,1269.16425301,0.00039422,120]
[357276986,1743974880776,9899.52077587,0.0001,2]
[357276987,1743974880799,681.17547266,0.0001,2]
[357276988,1743974881497,-250.0,0.00019,2]
[357276989,1743974881523,-400.0,0.000194,7]
[357276990,1743974881549,-800.0,0.000195,7]
[357276991,1743974881574,-1200.0,0.000196,7]
[357276992,1743974881598,-1600.0,0.000197,7]
[357276993,1743974881621,-2000.0,0.000198,7]
[357276994,1743974881644,-307.72475059,0.00019873,2]
[357276995,1743974881668,-255.10906284,0.000199,3]
[357276996,1743974881691,-313.76342884,0.000199,2]
[357276997,1743974881715,-530.69879966,0.000199,2]
[357276998,1743974881740,-400.0,0.000199,7]
[357276999,1743974881764,-188.09187883,0.000199,2]
[357277000,1743974881788,-395.93356146,0.0001995,2]
[357277001,1743974882065,-501.79370607,0.00019973,2]
[357277002,1743974882088,-500.0,0.00019973,2]
[357277003,1743974882111,-504.43450239,0.00019973,2]
[357277004,1743974882134,-456.65072495,0.0001999,2]
[357277005,1743974882158,-2155.3285272,0.0001999,2]
[357277006,1743974882183,-179.99404493,0.00019999,2]
[357277007,1743974882207,-497.12578567,0.00019999,2]
[357277008,1743974882234,-3986563.35122657,0.0002,2]
[357277009,1743974884803,9318.82452734,0.00015,2]
[357277010,1743974884827,10000.0,0.00015,2]
[357277011,1743974884851,10000.0,0.00015,2]
[357277012,1743974884875,10000.0,0.00015,2]
[357277013,1743974884898,10000.0,0.00015,2]
[357277014,1743974884923,10000.0,0.00015,2]
[357277015,1743974884947,10000.0,0.00015,2]
[357277016,1743974884973,10000.0,0.00015,2]
[357277017,1743974884999,10000.0,0.00015,2]
[357277018,1743974885024,10000.0,0.00015,2]
[357277019,1743974885049,10000.0,0.00015,2]
[357277020,1743974885073,10000.0,0.00015,2]
[357277021,1743974885096,10000.0,0.00015,2]
[357277022,1743974885120,10000.0,0.00015,2]
[357277023,1743974885145,10000.0,0.00015,2]
[357277024,1743974885169,10000.0,0.00015,2]
[357277025,1743974885192,10000.0,0.00015,2]
[357277026,1743974885216,10000.0,0.00015,2]
[357277027,1743974885241,10000.0,0.00015,2]
[357277028,1743974885266,10000.0,0.00015,2]
[357277029,1743974885295,10000.0,0.00015,2]
[357277030,1743974885320,10000.0,0.00015,2]
[357277031,1743974885344,10000.0,0.00015,2]
[357277032,1743974885384,10000.0,0.00015,2]
[357277033,1743974885423,10000.0,0.00015,2]
[357277034,1743974885464,10000.0,0.00015,2]
[357277035,1743974885502,10000.0,0.00015,2]
[357277036,1743974885542,10000.0,0.00015,2]
[357277037,1743974885582,10000.0,0.00015,2]
[357277038,1743974885621,10000.0,0.00015,2]
[357277039,1743974885658,10000.0,0.00015,2]
[357277040,1743974885695,10000.0,0.00015,2]
[357277041,1743974885729,10000.0,0.00015,2]
[357277042,1743974885761,10000.0,0.00015,2]
[357277043,1743974885795,10000.0,0.00015,2]
[357277044,1743974885832,10000.0,0.00015,2]
[357277045,1743974885867,10000.0,0.00015,2]
[357277046,1743974885902,10000.0,0.00015,2]
[357277047,1743974885937,10000.0,0.00015,2]
[357277048,1743974885971,10000.0,0.00015,2]
[357277049,1743974886009,10000.0,0.00015,2]
[357277050,1743974886044,10000.0,0.00015,2]
[357277051,1743974886079,10000.0,0.00015,2]
[357277052,1743974886113,10000.0,0.00015,2]
[357277053,1743974886147,10000.0,0.00015,2]
[357277054,1743974886179,10000.0,0.00015,2]
[357277055,1743974886215,10000.0,0.00015,2]
[357277056,1743974886252,10000.0,0.00015,2]
[357277057,1743974886289,10000.0,0.00015,2]
[357277058,1743974886326,10000.0,0.00015,2]
[357277059,1743974886360,10000.0,0.00015,2]
[357277060,1743974886395,930.3440389,0.00015,2]
[357277061,1743974887402,1007.46558317,0.00039422,30]
[357277062,1743974887697,953.24603424,0.00039422,120]
[357277063,1743974892962,1448.81668135,0.00039422,120]
[357277064,1743974894139,392.32963191,0.00039422,30]
[357277065,1743974894241,1540.11093121,0.00039422,30]
[357277066,1743974911385,370.49238153,0.00039422,120]
[357277067,1743974912965,176.33565142,0.00039422,60]
[357277068,1743974913871,1045.05111305,0.00039422,38]
[357277069,1743974916004,1284.71804872,0.00039422,120]
[357277070,1743974916586,2034.37101264,0.00039422,120]
[357277071,1743974917415,2340.82007948,0.00039422,30]
[357277072,1743974917927,233.76383881,0.00039422,120]
[357277073,1743974917986,2046.28523982,0.00039422,30]
[357277074,1743974918072,1388.85560097,0.00039422,120]
[357277075,1743974918994,902.17515725,0.00039422,120]
[357277076,1743974919437,1763.43048212,0.00039422,30]
[357277077,1743974919826,1324.45253918,0.00039422,120]
[357277078,1743974920444,313.73542163,0.00039422,30]
[357277079,1743974920499,662.9893875,0.00039422,90]
[357277080,1743974921105,165.38828533,0.00039422,120]
[357277081,1743974921709,165.63814897,0.00039422,30]
[357277082,1743974921870,1389.35836235,0.00039422,120]
[357277083,1743974921920,160.84528194,0.00039422,30]
[357277084,1743974922905,1295.49208505,0.00039422,120]
[357277085,1743974922999,1100.15863242,0.00039422,120]
[357277086,1743974923867,1112.34383133,0.00039422,120]
[357277088,1743974924976,1295.10829539,0.00039422,120]
[357277089,1743974925560,980.2427771,0.00039422,120]
[357277090,1743974925848,275.74377187,0.00039422,120]
[357277091,1743974926648,211.02759625,0.00039422,120]
[357277092,1743974927608,262.7500504,0.00039422,30]
[357277093,1743974927933,616.57871346,0.00039422,120]
[357277094,1743974928373,507.95803854,0.00039422,120]
[357277096,1743974929349,605.52583736,0.00039422,120]
[357277097,1743974929413,539.20216291,0.00039422,120]
[357277101,1743974931967,237.22715436,0.00039422,30]
[357277102,1743974933448,1000.0,0.00039422,30]
[357277103,1743974944154,594.79161192,0.00039422,60]
[357277910,1743975001895,1031.57664207,0.00039442,30]
[357277923,1743975002773,1000.0,0.00039442,30]
[357277938,1743975003589,1000.0,0.00039442,30]
[357278441,1743975031698,-174.83126931,0.000199,2]
[357278442,1743975031707,-159.95478019,0.000199,2]
[357278443,1743975031717,-297.87200981,0.000199,2]
[357278445,1743975031727,-10966.82532221,0.000199,2]
[357278446,1743975031736,-500.0,0.00019973,2]
[357278447,1743975031746,-163.86303383,0.0001999,2]
[357278448,1743975031755,-297866.65565984,0.0002,2]
[357278449,1743975031767,-56607.7433902,0.0002,2]
[357278453,1743975031929,-953574.10860779,0.0002,2]
[357278455,1743975031943,-502316.86846468,0.0002,2]
[357278456,1743975031955,-29010.38661008,0.0002,2]
[357278457,1743975031965,-1028.06797491,0.0002,2]
[357278458,1743975031975,-6281.9006532,0.0002,2]
[357278459,1743975031986,-151.64,0.0002,2]
[357278461,1743975031995,-151.64,0.0002,2]
[357278462,1743975032005,-151.64,0.0002,2]
[357278463,1743975032015,-151.64,0.0002,2]
[357278464,1743975032024,-250.0,0.000209,2]
[357278465,1743975032034,-300.0,0.00021,2]
[357278467,1743975032043,-140504.55869826,0.00021,2]
[357278468,1743975032054,-200.0,0.00021918,7]
[357278469,1743975032063,-350.0,0.00023,2]
[357278470,1743975032073,-200.0,0.00023,2]
[357278471,1743975032083,-2722.2090388,0.000232,2]
[357278472,1743975032093,-982.30947338,0.00024,2]
[357278474,1743975032103,-23900.0,0.00024673,2]
[357278475,1743975032112,-151.64,0.0002479,2]
[357278476,1743975032122,-388396.744246,0.000248,3]
[357278477,1743975032132,-500.0,0.00024873,2]
[357278478,1743975032142,-500.0,0.00024873,2]
[357278480,1743975032151,-502.1633941,0.00024873,2]
[357278481,1743975032161,-500.0,0.00024873,2]
[357278482,1743975032170,-500.0,0.00024873,2]
[357278483,1743975032180,-151.64,0.0002489,2]
[357278484,1743975032189,-324011.796357,0.000249,3]
[357278487,1743975032199,-400.0,0.00025,2]
[357278490,1743975032209,-1881.99999969,0.00025,7]
[357278492,1743975032218,-364.54853839,0.000253,10]
[357278494,1743975032227,-31766.08263892,0.00025421,2]
[357278495,1743975032236,-786.44576579,0.00025452,2]
[357278497,1743975032245,-313.76342878,0.00025733,2]
[357278499,1743975032255,-450.0,0.00027,2]
[357278501,1743975032264,-523.69530601,0.000275,2]
[357278503,1743975032275,-282.8,0.00027911,2]
[357278504,1743975032284,-174.8312693,0.00027914,2]
[357278506,1743975032294,-300.75,0.00028506,2]
[357278509,1743975032304,-500.0,0.00029,2]
[357278510,1743975032313,-2776.14,0.00029052,2]
[357278512,1743975032327,-1000.0,0.00030352,5]
[357278514,1743975032336,-564.67152122,0.00030352,5]
[357278515,1743975032346,-1000.0,0.00030352,5]
[357278517,1743975032355,-550.0,0.00031,2]
[357278518,1743975032366,-999.999999,0.00031279,5]
[357278519,1743975032375,-159.95478019,0.00031315,2]
[357278520,1743975032384,-313.76342878,0.00031567,2]
[357278521,1743975032394,-5000.01,0.0003282,2]
[357278523,1743975032403,-600.0,0.00033,2]
[357278524,1743975032413,-1503.55477167,0.00033,2]
[357278525,1743975032423,-4996.79428666,0.00033096,2]
[357278526,1743975032432,-399.05553433,0.00033408,2]
[357278527,1743975032441,-1000.0,0.00033722,2]
[357278528,1743975032450,-150.0,0.00033722,2]
[357278530,1743975032459,-157.22,0.00035,2]
[357278531,1743975032469,-50000.0,0.00035,40]
[357278532,1743975032479,-14361.83441151,0.0003511,30]
[357278533,1743975032489,-174.8312693,0.00035927,8]
[357278534,1743975032499,-840.41573391,0.000365,120]
[357278536,1743975032508,-5554.0,0.000365,5]
[357278537,1743975032517,-15810.18021221,0.00036726,2]
[357278538,1743975032527,-167.38,0.00036817,2]
[357278539,1743975032536,-252.77,0.00036968,2]
[357278540,1743975032546,-313.76342878,0.000374,2]
[357278542,1743975032556,-827.95,0.00037521,2]
[357278543,1743975032565,-679.08,0.00037526,120]
[357278544,1743975032575,-150.0,0.00037531,7]
[357278545,1743975032584,-287.32,0.0003758,120]
[357278546,1743975032594,-176.05,0.0003764,2]
[357278547,1743975032604,-65453.84116,0.00037766,2]
[357278549,1743975032613,-1000.0,0.00037937,2]
[357278550,1743975032623,-571.67775101,0.00038,10]
[357278551,1743975032633,-150.3,0.00038111,2]
[357278552,1743975032642,-150.3,0.00038138,2]
[357278553,1743975032651,-150.3,0.00038165,2]
[357278555,1743975032661,-150.3,0.00038192,2]
[357278556,1743975032670,-150.3,0.0003822,2]
[357278557,1743975032679,-150.3,0.00038247,2]
[357278558,1743975032688,-150.3,0.00038274,2]
[357278559,1743975032698,-150.3,0.00038301,2]
[357278561,1743975032708,-1096.77981042,0.00038422,10]
[357278562,1743975032717,-151.64,0.0003882,2]
[357278563,1743975032726,-1327.2679,0.0003883,2]
[357278564,1743975032735,-7887.2019,0.0003883,2]
[357278565,1743975032744,-500.0,0.0003883,2]
[357278567,1743975032754,-877.8155,0.0003883,2]
[357278568,1743975032763,-921.2864,0.0003883,2]
[357278569,1743975032773,-268.6287,0.0003883,2]
[357278570,1743975032783,-1996.2092,0.0003883,2]
[357278571,1743975032792,-2500.0,0.0003883,2]
[357278572,1743975032801,-24207.9299,0.0003884,2]
[357278574,1743975032810,-164.98753314,0.0003884,2]
[357278575,1743975032819,-383.8403002,0.0003884,2]
[357278576,1743975032828,-1905.037,0.0003886,53]
[357278577,1743975032838,-332.33979638,0.00038899,2]
[357278578,1743975032848,-250.0,0.00038913,2]
[357278580,1743975032858,-151.0,0.0003893,14]
[357278581,1743975032867,-151.64,0.0003893,2]
[357278582,1743975032876,-4722.37062971,0.00038939,2]
[357278583,1743975032886,-544552.3144561,0.0003894,2]
[357278585,1743975032914,-656.50622784,0.0003894,2]
[357278586,1743975032942,-1108.58868165,0.0003894,2]
[357278587,1743975032953,-33542.10279226,0.0003894,2]
[357278675,1743975037551,-957.28,0.00023122,2]
[357278676,1743975037564,-1631.0,0.00023122,2]
[357278677,1743975037575,-354.60144798,0.00023122,2]
[357278678,1743975037587,-1070.70831661,0.00023122,2]
[357278680,1743975037616,-6953.23555758,0.00023122,2]
[357278681,1743975037626,-4660.33514215,0.0003894,2]
[357278682,1743975037636,-151.0,0.0003894,14]
[357278684,1743975037646,-151.0,0.0003894,14]
[357278685,1743975037656,-151.0,0.0003894,14]
[357278686,1743975037665,-242.398391,0.0003894,14]
[357278687,1743975037675,-242.398391,0.0003894,14]
[357278688,1743975037683,-151.0,0.0003894,14]
[357278689,1743975037693,-230.841428,0.0003894,14]
[357278691,1743975037703,-151.0,0.0003894,14]
[357278692,1743975037713,-151.0,0.0003894,14]
[357278693,1743975037723,-151.0,0.0003894,14]
[357278694,1743975037733,-3104.249028,0.0003894,14]
[357278695,1743975037743,-3104.249028,0.0003894,14]
[357278697,1743975037752,-151.0,0.0003894,14]
[357278698,1743975037762,-201.672015,0.0003894,14]
[357278699,1743975037774,-201.672015,0.0003894,14]
[357278700,1743975037784,-500.0,0.00038973,5]
[357278701,1743975037794,-163.86303383,0.0003899,2]
[357278703,1743975037803,-61392.293766,0.00039,20]
[357278704,1743975037813,-154.58,0.00039087,2]
[357278705,1743975037822,-300.0,0.00039225,2]
[357278706,1743975037832,-36045.8581,0.0003923,2]
[357278707,1743975037842,-1000.0,0.0003933,2]
[357278708,1743975037852,-200.0,0.000394,100]
[357278710,1743975037862,-638.07164523,0.00039442,2]
[357278711,1743975037871,-616.71934819,0.00039442,6]
[357278712,1743975037880,-7770.73664467,0.00039442,2]
[357278713,1743975037891,-3218.60310239,0.00039442,2]
[357278714,1743975037900,-511.13858225,0.00039442,7]
[357278716,1743975037910,-300.0,0.00039617,2]
[357278717,1743975037919,-300.75,0.00039738,2]
[357278718,1743975037929,-151.0,0.0003988,14]
[357278719,1743975037938,-151.64,0.0003988,2]
[357278720,1743975037948,-151.0,0.0003989,14]
[357278722,1743975037957,-151.0,0.0003989,14]
[357278723,1743975037969,-242.398391,0.0003989,14]
[357278724,1743975037979,-242.398391,0.0003989,14]
[357278725,1743975037989,-151.0,0.0003989,14]
[357278726,1743975037998,-151.0,0.0003989,14]
[357278728,1743975038008,-151.0,0.0003989,14]
[357278729,1743975038018,-151.0,0.0003989,14]
[357278730,1743975038027,-3104.249028,0.0003989,14]
[357278731,1743975038037,-3104.249028,0.0003989,14]
[357278732,1743975038047,-201.672015,0.0003989,14]
[357278734,1743975038056,-201.672015,0.0003989,14]
[357278735,1743975038066,-63154.1757,0.0003989,2]
[357278736,1743975038076,-304.76,0.00039969,2]
[357278737,1743975038085,-450.0,0.00040009,4]
[357278738,1743975038096,-1158.80855114,0.00040371,5]
[357278740,1743975038106,-1500.0,0.00040371,5]
[357278741,1743975038115,-150.0,0.00040402,4]
[357278742,1743975038128,-565.0,0.00041066,120]
[357278743,1743975038138,-565.0,0.00041076,120]
[357278744,1743975038147,-565.0,0.00041086,120]
[357278746,1743975038158,-150.0,0.00041096,10]
[357278747,1743975038168,-500.0,0.00041096,31]
[357278748,1743975038178,-500.0,0.00041096,31]
[357278749,1743975038187,-500.0,0.00041096,31]
[357278750,1743975038197,-600.00000001,0.00041096,31]
[357278752,1743975038207,-971.00627953,0.00041096,31]
[357278753,1743975038216,-971.00627953,0.00041096,31]
[357278754,1743975038227,-971.00627953,0.00041096,31]
[357278755,1743975038237,-971.00627953,0.00041096,31]
[357278756,1743975038247,-971.00627953,0.00041096,31]
[357278757,1743975038257,-971.00627953,0.00041096,31]
[357278759,1743975038267,-971.00627953,0.00041096,31]
[357278760,1743975038278,-971.00627953,0.00041096,31]
[357278761,1743975038288,-971.00627953,0.00041096,31]
[357278762,1743975038298,-971.00627953,0.00041096,31]
[357278763,1743975038307,-954.36459217,0.00041096,31]
[357278765,1743975038317,-954.36459217,0.00041096,31]
[357278766,1743975038330,-954.36459217,0.00041096,31]
[357278767,1743975038345,-954.36459217,0.00041096,31]
[357278768,1743975038357,-954.36459217,0.00041096,31]
[357278769,1743975038368,-954.36459217,0.00041096,31]
[357278771,1743975038379,-954.36459217,0.00041096,31]
[357278772,1743975038390,-954.36459217,0.00041096,31]
[357278773,1743975038400,-954.36459217,0.00041096,31]
[357278774,1743975038410,-1703.17373371,0.00041096,31]
[357278775,1743975038420,-355.62494099,0.000411,2]
[357278776,1743975038430,-339.27688042,0.000411,2]
[357278778,1743975038440,-200.0,0.00041415,2]
[357278779,1743975038450,-250.0,0.00041644,10]
[357278780,1743975038460,-674.12,0.00041653,2]
[357278781,1743975038470,-679.08,0.00042004,120]
[357278782,1743975038481,-1000.0,0.000421,7]
[357278784,1743975038491,-1000.0,0.00042153,2]
[357278785,1743975038501,-350.0,0.00042192,10]
[357278786,1743975038511,-287.32,0.00042277,120]
[357278787,1743975038521,-1390.0,0.000425,120]
[357278788,1743975038531,-1092.8648262,0.000425,60]
[357278790,1743975038541,-159.95478019,0.00042731,28]
[357278791,1743975038551,-250.0,0.0004274,10]
[357278792,1743975038561,-313.76342878,0.00043233,10]
[357278793,1743975038571,-201.22781,0.0004329,73]
[357278794,1743975038580,-151.0,0.0004338,14]
[357278796,1743975038590,-16197.72572869,0.0004339,2]
[357278797,1743975038601,-2889.0,0.000436,7]
[357278798,1743975038611,-829.8,0.000436,36]
[357278799,1743975038621,-829.8,0.000436,36]
[357278800,1743975038631,-829.8,0.000436,36]
[357278802,1743975038640,-829.8,0.000436,36]
[357278803,1743975038649,-829.8,0.000436,36]
[357278804,1743975038659,-829.8,0.000436,36]
[357278805,1743975038668,-829.8,0.000436,36]
[357278806,1743975038677,-829.8,0.000436,36]
[357278808,1743975038687,-829.8,0.000436,36]
[357278809,1743975038696,-829.8,0.000436,36]
[357278810,1743975038706,-829.8,0.000436,36]
[357278811,1743975038715,-829.8,0.000436,36]
[357278812,1743975038724,-151.0,0.00043826,14]
[357278814,1743975038734,-151.0,0.00043826,14]
[357278815,1743975038744,-151.0,0.00043826,14]
[357278816,1743975038754,-151.0,0.00043826,14]
[357278817,1743975038763,-151.0,0.00043826,14]
[357278818,1743975038772,-242.398391,0.00043826,14]
[357278820,1743975038781,-242.398391,0.00043826,14]
[357278821,1743975038797,-151.0,0.00043826,14]
[357278822,1743975038811,-151.0,0.00043826,14]
[357278828,1743975039042,-151.0,0.00043826,14]
[357278830,1743975039060,-500.0,0.00043836,120]
[357278831,1743975039070,-500.0,0.00043836,120]
[357278832,1743975039079,-500.0,0.00043836,120]
[357278833,1743975039089,-500.0,0.00043836,120]
[357278834,1743975039098,-500.0,0.00043836,120]
[357278835,1743975039108,-500.0,0.00043836,120]
[357278837,1743975039118,-500.0,0.00043836,120]
[357278838,1743975039128,-500.0,0.00043836,120]
[357278839,1743975039138,-500.0,0.00043836,120]
[357278840,1743975039147,-500.0,0.00043836,120]
[357278841,1743975039157,-500.0,0.00043836,120]
[357278843,1743975039166,-500.0,0.00043836,120]
[357278844,1743975039175,-500.0,0.00043836,120]
[357278845,1743975039185,-500.0,0.00043836,120]
[357278846,1743975039195,-500.0,0.00043836,120]
[357278847,1743975039204,-500.0,0.00043836,120]
[357278849,1743975039214,-500.0,0.00043836,120]
[357278850,1743975039223,-500.0,0.00043836,120]
[357278851,1743975039233,-500.0,0.00043836,120]
[357278852,1743975039242,-500.0,0.00043836,120]
[357278853,1743975039252,-500.0,0.00043836,120]
[357278854,1743975039262,-500.0,0.00043836,120]
[357278856,1743975039271,-500.0,0.00043836,120]
[357278857,1743975039280,-500.0,0.00043836,120]
[357278858,1743975039290,-500.0,0.00043836,120]
[357278859,1743975039299,-500.0,0.00043836,120]
[357278860,1743975039309,-500.0,0.00043836,120]
[357278862,1743975039318,-500.0,0.00043836,120]
[357278863,1743975039328,-500.0,0.00043836,120]
[357278864,1743975039341,-500.0,0.00043836,120]
[357278865,1743975039351,-500.0,0.00043836,120]
[357278866,1743975039360,-500.0,0.00043836,120]
[357278867,1743975039371,-500.0,0.00043836,120]
[357278869,1743975039381,-500.0,0.00043836,120]
[357278870,1743975039390,-500.0,0.00043836,120]
[357278871,1743975039400,-500.0,0.00043836,120]
[357278872,1743975039409,-500.0,0.00043836,120]
[357278873,1743975039418,-500.0,0.00043836,120]
[357278875,1743975039429,-500.0,0.00043836,120]
[357278876,1743975039439,-500.0,0.00043836,120]
[357278879,1743975039448,-500.0,0.00043836,120]
[357278881,1743975039458,-500.0,0.00043836,120]
[357278883,1743975039468,-500.0,0.00043836,120]
[357278884,1743975039477,-500.0,0.00043836,120]
[357278886,1743975039488,-500.0,0.00043836,120]
[357278887,1743975039498,-500.0,0.00043836,120]
[357278888,1743975039507,-500.0,0.00043836,120]
[357278889,1743975039517,-500.0,0.00043836,120]
[357278890,1743975039526,-500.0,0.00043836,120]
[357278892,1743975039536,-500.0,0.00043836,120]
[357278893,1743975039546,-500.0,0.00043836,120]
[357278894,1743975039555,-500.0,0.00043836,120]
[357278895,1743975039565,-500.0,0.00043836,120]
[357278896,1743975039574,-500.0,0.00043836,120]
[357278897,1743975039584,-500.0,0.00043836,120]
[357278899,1743975039594,-500.0,0.00043836,120]
[357278900,1743975039604,-500.0,0.00043836,120]
[357278901,1743975039613,-500.0,0.00043836,120]
[357278902,1743975039624,-500.0,0.00043836,120]
[357278904,1743975039634,-500.0,0.00043836,120]
[357278905,1743975039643,-500.0,0.00043836,120]
[357278906,1743975039653,-403.52089582,0.00043836,120]
[357278907,1743975039662,-500.0,0.00043836,120]
[357278908,1743975039672,-500.0,0.00043836,120]
[357278909,1743975039681,-500.0,0.00043836,120]
[357278911,1743975039691,-616.64102281,0.00043836,120]
[357278912,1743975039701,-258.337602,0.00043836,14]
[357278913,1743975039711,-206.830521,0.00043836,14]
[357278914,1743975039721,-151.0,0.00043836,14]
[357278915,1743975039730,-3104.249028,0.00043836,14]
[357278917,1743975039739,-3104.249028,0.00043836,14]
[357278918,1743975039748,-201.672015,0.00043836,14]
[357278919,1743975039758,-201.672015,0.00043836,14]
[357278920,1743975039768,-1478.4263952,0.0004384,2]
[357278921,1743975039778,-2933.9956764,0.0004384,2]
[357278922,1743975039788,-3083.0952594,0.0004384,2]
[357278924,1743975039797,-8257.2227025,0.0004384,2]
[357278925,1743975039806,-5433.3055814,0.00043857,2]
[357278926,1743975039815,-290.7095111,0.00043887,2]
[357278927,1743975039825,-674.12,0.00043917,2]
[357278928,1743975039835,-174.8312693,0.00043941,18]
[357278930,1743975039844,-2000.0,0.00044172,120]
[357278931,1743975039854,-166.83,0.00044239,2]
[357278932,1743975039862,-500.0,0.00044321,2]
[357278933,1743975039870,-198.94940819,0.00044452,10]
[357278934,1743975039880,-150.0,0.00044714,2]
[357278935,1743975039889,-171.85,0.00044978,2]
[357278937,1743975039899,-500.0,0.00045,120]
[357278938,1743975039908,-151.0,0.00045,120]
[357278939,1743975039918,-151.0,0.00045,120]
[357278940,1743975039927,-589.44772763,0.00045,5]
[357278941,1743975039937,-1000.0,0.00045,120]
[357278943,1743975039946,-154.58,0.00045205,2]
[357278944,1743975039958,-151.0,0.0004551,14]
[357278945,1743975039968,-1941.9509544,0.0004558,4]
[357278946,1743975039978,-150.0,0.00045589,10]
[357278947,1743975039988,-150.0,0.00045698,2]
[357278949,1743975039998,-201.22781,0.0004579,79]
[357278950,1743975040008,-1000.0,0.00046,15]
[357278951,1743975040018,-1000.0,0.00046,14]
[357278952,1743975040028,-1000.0,0.00046,13]
[357278953,1743975040037,-1000.0,0.00046,13]
[357278954,1743975040047,-1000.0,0.00046,12]
[357278956,1743975040057,-1000.0,0.00046,12]
[357278957,1743975040066,-562.0,0.00046,12]
[357278958,1743975040076,-284.47626399,0.00046,11]
[357278959,1743975040091,-715.52373601,0.00046,11]
[357278960,1743975040101,-1000.0,0.00046,10]
[357278962,1743975040110,-1000.0,0.00046,9]
[357278963,1743975040131,-532.46889559,0.00046,9]
[357278964,1743975040150,-430.7175094,0.00046,9]
[357278968,1743975040171,-36.81359501,0.00046,9]
[357278970,1743975040191,-1000.0,0.00046,5]
[357278972,1743975040207,-214.67266758,0.00046181,2]
[357278975,1743975040224,-459.44733242,0.00046181,2]
[357278977,1743975040242,-602.68990414,0.00046368,2]
[357278980,1743975040265,-325.99156457,0.00046368,2]
[357278982,1743975040285,-71.31853129,0.00046368,2]
[357278984,1743975040303,-702.34446872,0.00046407,120]
[357278986,1743975040349,-297.65553128,0.00046407,120]
[357278987,1743975040366,-679.08,0.00046482,120]
[357278988,1743975040381,-292.792633,0.00046558,14]
[357278989,1743975040394,-188.17256807,0.00046558,14]
[357278991,1743975040415,-104.62006493,0.00046558,14]
[357278992,1743975040427,-983.26947,0.00046558,14]
[357278993,1743975040444,-983.26947,0.00046558,14]
[357278995,1743975040458,-6514.04099507,0.00046578,2]
[357278996,1743975040476,-2313.95,0.00046578,2]